bitfinex/quotes_ETHUSD_20250426
["timestamp","ask_amount","ask_price","bid_price","bid_amount"]
[1745654936863,5.1183,1801.9,1801.7,6.13]
[1745654938489,5.1183,1801.9,1801.7,11.6802631]
[1745654938709,4.653,1801.9,1801.7,5.5502631]
[1745654940919,0.7605,1802.1,1801.8,5.54989144]
[1745654941094,5.4135,1802.1,1801.8,5.54989144]
[1745654941976,5.4135,1802.1,1801.8,5.5499881]
[1745654942179,0.55,1802.4,1801.5,0.49758052]
[1745654942394,5.446,1802.3,1802.0,5.54923538]
[1745654943300,5.54891301,1802.2,1801.8,6.35275922]
[1745654943495,10.99458111,1802.3,1801.9,5.54961761]
[1745654947045,10.99458111,1802.3,1801.8,11.679838]
[1745654947217,5.54896533,1802.2,1801.8,11.679838]
[1745654947536,5.549121,1802.1,1801.8,6.13]
[1745654948106,6.64845003,1802.2,1801.8,11.67999007]
[1745654948435,5.54914311,1802.1,1801.8,6.13]
[1745654948603,5.54950187,1802.0,1801.8,6.13]
[1745654948799,6.37170187,1802.0,1801.8,6.13]
[1745654949042,0.63717019,1801.9,1801.8,6.13]
[1745654949228,6.37170187,1802.0,1801.8,6.13]
[1745654950528,6.37170187,1802.0,1801.6,5.55048828]
[1745654950923,0.8222,1802.0,1801.6,5.55048828]
[1745654951157,5.54973511,1801.9,1801.5,6.86958247]
[1745654951328,6.3717418,1802.0,1801.6,5.55058521]
[1745654951647,0.63717418,1801.9,1801.6,5.55058521]
[1745654952236,5.54971145,1801.9,1801.5,6.37208441]
[1745654952442,10.20271145,1801.9,1801.5,6.37208441]
[1745654952939,5.55053005,1801.7,1801.3,0.7611]
[1745654953139,6.34596061,1801.6,1801.1,12.49309283]
[1745654953310,6.34596061,1801.6,1801.2,5.55179108]
[1745654953902,0.7952,1801.6,1801.2,5.55185431]
[1745654954130,0.7952,1801.6,1801.3,5.55152094]
[1745654954531,3.7952,1801.8,1801.4,0.7611]
[1745654954737,3.0,1801.8,1801.5,5.55088711]
[1745654955120,3.0,1801.8,1801.4,6.31210485]
[1745654955446,3.0,1801.8,1801.4,6.31209809]
[1745654955640,3.0,1801.8,1801.4,11.86308869]
[1745654955806,3.0,1801.8,1801.4,6.3120906]
[1745654956744,3.0,1801.8,1801.5,5.55088761]
[1745654956942,4.654,1801.8,1801.6,6.37242889]
[1745654957543,6.64843411,1802.2,1801.7,5.55031359]
[1745654957733,4.654,1802.1,1801.6,6.87002269]
[1745654957933,6.01491523,1802.0,1801.6,6.87002269]
[1745654958445,6.01491523,1802.0,1801.6,6.37244217]
[1745654959161,5.54976287,1801.9,1801.6,0.822]
[1745654961056,6.83792527,1802.0,1801.6,6.37260818]
[1745654961755,12.38761761,1802.0,1801.6,0.822]
[1745654961956,6.83792527,1802.0,1801.6,0.822]
[1745654962151,12.38758074,1802.0,1801.6,6.37257271]
[1745654962323,6.83792527,1802.0,1801.6,6.37257271]
[1745654963146,12.38759212,1802.0,1801.6,6.37257271]
[1745654963552,6.78866388,1801.9,1801.5,6.13]
[1745654963851,5.55001341,1801.8,1801.5,6.13]
[1745654964057,1.23875921,1801.9,1801.5,6.13]
[1745654964358,6.37235188,1802.0,1801.7,0.8181]
[1745654965573,10.20322106,1802.1,1801.7,6.36834615]
[1745654965756,10.20322106,1802.1,1801.7,0.8181]
[1745654965921,5.5494964,1802.0,1801.7,0.8181]
[1745654966946,3.0,1802.1,1801.7,6.36819069]
[1745654967124,3.0,1802.1,1801.8,5.54998486]
[1745654967125,4.654,1802.0,1801.8,5.54998486]
[1745654967631,4.654,1802.2,1801.8,1.19181756]
[1745654967833,4.654,1802.2,1801.9,5.54968035]
[1745654968071,0.41367654,1802.7,1802.2,0.8181]
[1745654968275,11.02402812,1802.8,1802.3,5.54846584]
[1745654968572,5.54728209,1802.7,1802.3,5.54829441]
[1745654969461,5.54728209,1802.7,1802.2,6.86428332]
[1745654969641,7.20439517,1802.7,1802.2,6.86428332]
[1745654969842,5.54771045,1802.6,1802.2,6.3667028]
[1745654970463,7.20449536,1802.7,1802.2,6.3667028]
[1745654970961,7.20449536,1802.7,1802.3,5.54843787]
[1745654971154,7.20449536,1802.7,1802.3,5.54827526]
[1745654971155,1.65711308,1802.7,1802.3,5.54827526]
[1745654971356,11.02395755,1802.8,1802.2,1.31568052]
[1745654971663,11.02395755,1802.8,1802.3,5.54824606]
[1745654971831,11.02395755,1802.8,1802.3,11.09648099]
[1745654972031,11.02395755,1802.8,1802.3,11.09648444]
[1745654972231,11.02395755,1802.8,1802.3,5.54823493]
[1745654972232,16.57115524,1802.8,1802.3,5.54823493]
[1745654972554,5.5473217,1802.7,1802.2,6.3667074]
[1745654972940,6.36063345,1802.5,1802.0,12.43617133]
[1745654973155,0.8125,1802.5,1802.0,12.43617133]
[1745654973343,5.54817822,1802.4,1802.0,12.43617133]
[1745654973543,0.8125,1802.5,1802.1,5.54883046]
[1745654973747,6.99650381,1802.5,1802.1,5.54883046]
[1745654973952,1.44852072,1802.5,1802.1,11.09777628]
[1745654974268,9.35999881,1802.7,1802.2,5.54855868]
[1745654974440,9.35999881,1802.7,1802.3,5.54834422]
[1745654974866,14.90751304,1802.7,1802.2,5.54860362]
[1745654975269,9.35999881,1802.7,1802.3,5.54842448]
[1745654975555,9.35999881,1802.7,1802.2,5.54860535]
[1745654975862,3.0,1802.7,1802.4,6.30503466]
[1745654976030,10.20107772,1802.8,1802.4,6.30503466]
[1745654976742,10.20093039,1802.8,1802.4,6.30490774]
[1745654977242,4.654,1802.8,1802.5,5.54758704]
[1745654977726,4.654,1802.8,1802.5,11.09520989]
[1745654978128,4.654,1802.8,1802.6,5.54746792]
[1745654978338,4.654,1802.8,1802.7,0.8318]
[1745654979961,4.654,1802.8,1802.6,5.54746792]
[1745654980261,4.654,1802.8,1802.6,6.37926792]
[1745654980570,4.654,1802.8,1802.6,0.8318]
[1745654983164,4.654,1802.8,1802.6,6.379307]
[1745654983845,4.654,1802.8,1802.6,0.8318]
[1745654985079,4.654,1802.8,1802.6,6.37933075]
[1745654985280,4.654,1802.8,1802.6,0.8318]
[1745654986049,10.20103086,1802.8,1802.6,0.8318]
[1745654986473,10.20103086,1802.8,1802.5,0.7584]
[1745654989276,4.654,1802.8,1802.5,6.30610541]
[1745654989477,4.654,1802.8,1802.5,6.30623492]
[1745654990177,4.654,1802.8,1802.5,6.30604249]
[1745654990347,4.654,1802.8,1802.5,7.49145111]
[1745654990848,4.654,1802.8,1802.5,1.94380862]
[1745654991048,4.654,1802.8,1802.5,6.30598828]
[1745654993986,4.654,1802.8,1802.6,5.5475132]
[1745654995288,4.654,1802.8,1802.5,6.30604505]
[1745654995479,13.19750819,1803.0,1802.6,5.54752748]
[1745654996992,0.7937,1803.3,1802.9,0.7584]
[1745654997197,10.1962639,1803.4,1802.9,6.30488011]
[1745654997378,11.86139364,1803.4,1802.9,0.7584]
[1745654997887,5.54541342,1803.3,1802.9,6.30481206]
[1745654998069,11.86139364,1803.4,1803.0,5.54628522]
[1745654998891,5.54540048,1803.3,1802.9,6.30483382]
[1745655000259,0.7533,1803.2,1802.8,5.54677743]
[1745655000458,0.7533,1803.2,1802.7,11.67722433]
[1745655000665,6.29919097,1803.2,1802.8,5.54688977]
[1745655000863,0.7533,1803.2,1802.9,5.54656261]
[1745655001088,1.61224777,1803.2,1802.9,5.54656261]
[1745655002082,4.65,1803.1,1802.9,5.54656261]
[1745655004102,4.65,1803.1,1802.9,5.5465845]
[1745655004305,4.65,1803.1,1802.8,5.54674347]
[1745655005401,4.65,1803.1,1802.7,11.67705465]
[1745655005601,4.65,1803.1,1802.8,5.54690277]
[1745655007374,11.37687888,1803.1,1802.7,5.54700242]
[1745655007578,11.37687888,1803.1,1802.7,5.54699936]
[1745655007902,11.37687888,1803.1,1802.6,0.7522]
[1745655008070,11.37687888,1803.1,1802.7,5.5472337]
[1745655008266,1.3266,1803.0,1802.4,6.13]
[1745655008471,5.54686478,1802.9,1802.4,6.35467166]
[1745655008779,6.32360079,1802.8,1802.4,6.35467166]
[1745655009209,5.54725396,1802.7,1802.3,5.54833084]
[1745655009869,0.7766,1802.8,1802.4,5.54785547]
[1745655010104,6.32354009,1802.8,1802.4,5.54785547]
[1745655011396,6.32354009,1802.8,1802.4,11.09577621]
[1745655011597,3.40933142,1802.9,1802.5,6.35435799]
[1745655011598,3.0,1802.9,1802.5,6.35435799]
[1745655011797,3.0,1802.9,1802.6,5.54743691]
[1745655011997,4.65,1803.0,1802.8,5.54664035]
[1745655012507,4.65,1803.0,1802.7,5.54701189]
[1745655013189,4.65,1803.0,1802.7,11.09403355]
[1745655013392,4.65,1803.0,1802.7,5.54701189]
[1745655014212,4.65,1803.0,1802.7,11.09402965]
[1745655014414,4.65,1803.0,1802.7,5.54701189]
[1745655015120,11.0051518,1803.0,1802.6,6.35404799]
[1745655015719,5.4588,1803.0,1802.7,5.54723468]
[1745655016185,5.4588,1803.0,1802.7,11.09422823]
[1745655016388,4.65,1803.0,1802.7,11.09422823]
[1745655016685,4.65,1803.0,1802.8,5.54690171]
[1745655018222,4.65,1803.0,1802.7,11.09404554]
[1745655018721,4.65,1803.0,1802.7,11.09404019]
[1745655019120,4.65,1803.0,1802.7,5.54699355]
[1745655019984,4.65,1803.0,1802.8,5.54690163]
[1745655020175,7.65,1803.1,1802.8,5.54690163]
[1745655020710,3.0,1803.1,1802.8,5.54690163]
[1745655021089,7.65,1803.1,1802.8,5.54690163]
[1745655022179,3.0,1803.1,1802.8,6.37530163]
[1745655022608,4.65,1803.2,1802.8,7.63087639]
[1745655023205,4.65,1803.2,1802.9,5.54650731]
[1745655023412,4.65,1803.2,1802.9,11.09290446]
[1745655023616,4.65,1803.2,1803.0,5.54629865]
[1745655023827,3.0,1803.4,1803.1,0.8284]
[1745655023985,3.0,1803.4,1803.1,6.37426819]
[1745655026911,8.54511715,1803.4,1803.1,0.8284]
[1745655027302,0.10432975,1803.3,1803.1,0.8284]
[1745655029221,0.10432975,1803.3,1803.0,6.37454267]
[1745655029813,6.45852298,1803.3,1802.9,5.54646617]
[1745655031317,5.54596837,1803.2,1802.8,6.375319]
[1745655031494,5.54596837,1803.2,1802.6,12.50581949]
[1745655031495,6.35531778,1803.0,1802.6,12.50581949]
[1745655031894,0.32542021,1802.9,1802.6,12.50581949]
[1745655032651,0.32542021,1802.9,1802.6,6.9584]
[1745655032810,0.32542021,1802.9,1802.7,5.54711492]
[1745655033541,0.32542021,1802.9,1802.8,5.546927]
[1745655033754,4.649,1803.1,1802.8,5.546927]
[1745655033950,1.50036401,1803.3,1802.9,6.37442759]
[1745655033951,3.55,1803.3,1802.9,6.37442759]
[1745655034147,9.09540204,1803.3,1802.9,6.37442759]
[1745655034850,0.32451285,1803.2,1802.9,6.37442759]
[1745655036551,0.32451285,1803.2,1802.9,11.92083088]
[1745655036855,0.32451285,1803.2,1803.0,5.54630644]
[1745655037311,10.19527794,1803.4,1803.0,5.54630644]
[1745655037515,0.32451285,1803.1,1803.0,5.54630644]
[1745655037712,10.19527794,1803.4,1803.0,5.54630644]
[1745655037945,0.32214346,1803.1,1803.0,5.54630644]
[1745655038155,10.19527794,1803.4,1803.0,6.85760236]
[1745655038320,0.32214346,1803.1,1803.0,5.54630644]
[1745655038520,10.19527794,1803.4,1803.0,5.54630644]
[1745655038721,0.32214346,1803.1,1803.0,5.54630644]
[1745655038922,10.19527794,1803.4,1803.0,5.54630644]
[1745655039123,0.32214346,1803.1,1803.0,5.54630644]
[1745655039353,15.74064048,1803.4,1803.0,6.73839405]
[1745655039655,10.19527794,1803.4,1803.0,5.54630644]
[1745655039862,0.32176987,1803.3,1803.0,5.54630644]
[1745655040045,0.32176987,1803.3,1802.9,6.37449453]
[1745655040243,5.86728211,1803.3,1802.9,6.37449453]
[1745655040663,1.13136987,1803.3,1802.9,0.828]
[1745655040957,6.35607219,1803.0,1802.6,11.67735549]
[1745655041168,6.35607219,1803.0,1802.6,7.92974389]
[1745655041371,5.54676257,1802.9,1802.6,6.13]
[1745655041525,5.86927969,1802.9,1802.6,6.13]
[1745655042548,5.5470672,1802.8,1802.3,6.32995564]
[1745655042756,0.32235701,1802.8,1802.4,5.54802535]
[1745655042927,0.32235701,1802.8,1802.5,5.54784686]
[1745655043259,0.32235701,1802.8,1802.4,6.18091839]
[1745655043463,5.86935279,1802.8,1802.4,6.18091839]
[1745655043977,0.32235701,1802.8,1802.5,5.54772901]
[1745655044473,5.86931717,1802.8,1802.4,6.18092412]
[1745655045530,6.37738503,1802.7,1802.4,0.63296254]
[1745655045765,6.69835415,1802.7,1802.3,6.3299252]
[1745655049279,6.69834356,1802.7,1802.3,6.3299252]
[1745655049769,1.15106912,1802.7,1802.3,6.32986351]
[1745655050065,1.15106912,1802.7,1802.4,5.54795901]
[1745655050231,1.15106912,1802.7,1802.5,5.54784164]
[1745655050571,1.15106912,1802.7,1802.4,5.5480491]
[1745655050744,6.69838251,1802.7,1802.3,6.32992531]
[1745655051669,7.92291412,1802.7,1802.3,5.54832531]
[1745655051879,0.8125,1802.4,1802.1,6.30167394]
[1745655052369,0.32096912,1802.3,1802.1,6.30167394]
[1745655052732,6.36068481,1802.4,1802.1,0.7527]
[1745655053055,6.36068481,1802.4,1802.0,5.54928146]
[1745655053251,0.31568326,1802.3,1802.0,7.35088839]
[1745655053455,0.8125,1802.4,1802.1,5.54907939]
[1745655053674,0.31568326,1802.3,1802.1,5.54907939]
[1745655053838,0.8125,1802.4,1802.1,5.54907939]
[1745655054038,0.31568326,1802.3,1802.1,5.54907939]
[1745655054238,0.8125,1802.4,1802.1,6.83907617]
[1745655054438,0.8125,1802.4,1802.0,7.35079369]
[1745655054658,0.31568326,1802.3,1802.0,7.35079369]
[1745655054969,0.8125,1802.4,1801.9,6.9172]
[1745655055174,0.31568326,1802.2,1801.9,12.46672888]
[1745655055475,0.31568326,1802.1,1801.9,12.46672888]
[1745655055678,5.54857719,1802.3,1801.9,12.46672888]
[1745655055877,0.31568326,1802.0,1801.9,12.46672888]
[1745655056075,0.8125,1802.4,1801.9,6.9172]
[1745655056291,5.54881523,1802.2,1801.8,6.81313493]
[1745655056443,0.8051,1802.1,1801.8,5.54985441]
[1745655056642,6.35434144,1802.1,1801.7,5.55012908]
[1745655056879,0.31568326,1802.0,1801.7,5.55012908]
[1745655057281,0.7514,1801.8,1801.3,1.27398052]
[1745655057486,0.31482864,1801.7,1801.4,5.55105466]
[1745655057688,0.31482864,1801.7,1801.5,5.55092972]
[1745655058396,0.31482864,1801.7,1801.5,5.55071902]
[1745655058555,0.31482864,1801.7,1801.6,5.55062166]
[1745655058755,6.30096637,1802.0,1801.6,5.55062166]
[1745655058987,0.31477522,1801.9,1801.6,5.55062166]
[1745655059596,0.7514,1801.8,1801.3,6.32777035]
[1745655059796,10.95256611,1801.8,1801.3,6.32774412]
[1745655060094,0.31477522,1801.7,1801.3,6.32774412]
[1745655060249,5.86512273,1801.7,1801.3,6.32774412]
[1745655061099,7.54689161,1801.7,1801.3,6.32774412]
[1745655061271,1.9965441,1801.7,1801.4,5.55121435]
[1745655062074,0.31477522,1801.7,1801.4,5.55121435]
[1745655062774,0.31477522,1801.7,1801.3,6.32771447]
[1745655062972,0.31477522,1801.7,1801.3,11.87903684]
[1745655063702,0.31477522,1801.7,1801.3,6.32771447]
[1745655063877,0.31477522,1801.7,1801.5,5.55079394]
[1745655064694,0.31477522,1801.7,1801.6,6.32702166]
[1745655065009,4.652,1801.9,1801.6,6.32702166]
[1745655065189,0.30868827,1801.7,1801.6,6.32702166]
[1745655065386,4.652,1801.9,1801.6,0.7764]
[1745655065592,4.652,1801.9,1801.7,5.55006613]
[1745655066801,10.20182597,1801.9,1801.5,5.55077184]
[1745655067004,4.652,1801.9,1801.6,5.55058995]
[1745655067905,4.652,1801.9,1801.7,5.55029611]
[1745655068074,0.7514,1801.8,1801.5,5.55077964]
[1745655068607,0.7514,1801.8,1801.5,5.5507178]
[1745655068814,0.7514,1801.8,1801.6,5.55057811]
[1745655068972,5.4034,1801.9,1801.6,11.10098495]
[1745655069174,5.4034,1801.9,1801.6,5.55040684]
[1745655069806,4.652,1801.9,1801.7,5.55026728]
[1745655070839,4.652,1801.9,1801.7,5.55007023]
[1745655071002,4.652,1801.9,1801.7,6.32655286]
[1745655071339,4.652,1801.9,1801.5,5.55078421]
[1745655071340,10.20175362,1801.9,1801.5,5.55078421]
[1745655071525,11.85202625,1801.9,1801.5,5.55078421]
[1745655072038,5.55006181,1801.8,1801.4,6.32763792]
[1745655072206,11.85202625,1801.9,1801.5,5.55092444]
[1745655072798,17.40197923,1801.9,1801.5,5.55092444]
[1745655072999,0.8306,1801.7,1801.3,6.13]
[1745655073228,6.38095186,1801.7,1801.3,11.68137737]
[1745655075337,0.8306,1801.7,1801.4,5.55123757]
[1745655077534,0.8306,1801.7,1801.4,5.55106889]
[1745655077748,4.652,1801.8,1801.5,6.32328364]
[1745655078441,4.652,1801.8,1801.5,11.87397875]
[1745655078645,4.652,1801.8,1801.5,6.32319511]
[1745655079009,4.652,1801.8,1801.5,11.87388725]
[1745655079338,6.09958424,1802.0,1801.7,5.55020825]
[1745655079339,4.652,1802.0,1801.7,5.55020825]
[1745655079541,12.15458926,1802.0,1801.6,5.55049209]
[1745655079742,4.652,1802.0,1801.6,5.55045194]
[1745655079948,0.31019193,1801.9,1801.7,5.55003015]
[1745655080241,0.31019193,1801.9,1801.7,6.3226614]
[1745655080811,0.31019193,1801.9,1801.7,6.32256856]
[1745655081145,0.31019193,1801.9,1801.8,5.55000555]
[1745655081844,0.31019193,1801.9,1801.7,6.32256856]
[1745655083244,0.31019193,1801.9,1801.7,0.7725]
[1745655083408,0.31019193,1801.9,1801.7,6.32270031]
[1745655083604,0.31019193,1801.9,1801.8,5.55000555]
[1745655084344,4.652,1802.2,1801.9,5.54958229]
[1745655084546,0.30898111,1802.1,1801.9,5.54958229]
[1745655084918,0.30898111,1802.1,1801.8,5.55000555]
[1745655090127,5.85815587,1802.1,1801.7,7.5100117]
[1745655090329,5.85815587,1802.1,1801.6,5.55043689]
[1745655090330,0.8248,1802.0,1801.6,5.55043689]
[1745655090634,5.55000806,1801.8,1801.5,6.13]
[1745655090834,0.8248,1801.7,1801.5,6.13]
[1745655091246,0.30898111,1801.6,1801.5,6.13]
[1745655091630,6.37465059,1801.9,1801.5,11.68088609]
[1745655091865,0.30898111,1801.6,1801.5,13.40408404]
[1745655092067,0.8248,1801.9,1801.6,5.55060034]
[1745655092250,6.37451301,1801.9,1801.5,11.68074849]
[1745655092577,0.7943,1801.8,1801.5,11.68074849]
[1745655092867,17.18122546,1801.8,1801.5,6.13]
[1745655093067,5.55032326,1801.7,1801.5,6.13]
[1745655093731,11.63087472,1801.8,1801.5,6.13]
[1745655094432,5.55043619,1801.7,1801.5,6.13]
[1745655094782,5.55043619,1801.7,1801.2,6.04917866]
[1745655094930,5.8594741,1801.6,1801.2,6.79680271]
[1745655097075,1.10312083,1801.6,1801.2,6.79680271]
[1745655097371,1.10312083,1801.6,1801.3,5.5514297]
[1745655097669,5.5511072,1801.5,1801.1,6.4028458]
[1745655098234,0.30882083,1801.4,1801.1,6.4028458]
[1745655098777,5.86006282,1801.4,1801.1,0.8508]
[1745655099140,6.34586099,1801.3,1801.1,0.05]
[1745655099573,0.30882083,1801.2,1801.1,0.05]
[1745655106689,0.97428931,1801.2,1801.1,0.05]
[1745655107478,6.52614362,1801.2,1801.1,0.05]
[1745655107720,7.07614362,1801.2,1801.1,0.05]
[1745655107910,7.89324362,1801.2,1801.1,0.05]
[1745655109105,8.31288255,1801.2,1801.1,0.05]
[1745655109278,7.89324362,1801.2,1801.1,0.05]
[1745655109689,1.79138931,1801.2,1801.1,0.05]
[1745655110019,7.34324362,1801.2,1801.1,0.05]
[1745655110170,1.79138931,1801.2,1801.1,0.05]
[1745655112675,7.34324362,1801.2,1801.1,0.05]
[1745655113585,7.34324362,1801.2,1800.8,5.30285116]
[1745655116417,7.34324362,1801.2,1800.8,10.85569415]
[1745655116710,1.79138931,1801.2,1800.9,5.55277898]
[1745655117414,6.36277084,1801.0,1800.5,6.9178]
[1745655117616,6.4916712,1800.9,1800.5,12.47159877]
[1745655117779,0.8103,1800.8,1800.5,11.68379877]
[1745655118282,0.30256536,1800.7,1800.5,6.13]
[1745655118494,0.8103,1800.6,1800.5,6.13]
[1745655118902,1.10810449,1800.6,1800.5,6.13]
[1745655120603,0.29780449,1800.6,1800.5,6.13]
[1745655120814,5.55310771,1800.8,1800.5,6.13]
[1745655121111,0.29780449,1800.6,1800.5,6.13]
[1745655121308,6.91904195,1800.7,1800.5,6.13]
[1745655121510,0.29780449,1800.6,1800.5,6.13]
[1745655121879,6.91904195,1800.7,1800.5,6.13]
[1745655122099,0.98970869,1800.6,1800.5,6.13]
[1745655122408,0.55,1800.5,1800.1,5.60504425]
[1745655122716,6.10413114,1800.5,1800.1,5.60507679]
[1745655122935,0.7638,1800.4,1800.1,0.05]
[1745655123219,0.7638,1800.4,1800.1,5.60521759]
[1745655123220,1.49298449,1800.4,1800.1,5.60521759]
[1745655123808,1.90282054,1800.4,1800.1,5.60521759]
[1745655125526,7.45720366,1800.4,1800.1,0.05]
[1745655126126,1.90282054,1800.4,1800.1,0.05]
[1745655126734,1.90282054,1800.4,1800.1,5.60521256]
[1745655127428,1.90282054,1800.4,1800.1,0.05]
[1745655127631,7.4571431,1800.4,1800.1,0.05]
[1745655127800,1.90282054,1800.4,1800.1,0.05]
[1745655128117,1.90282054,1800.4,1800.1,6.39510178]
[1745655128725,1.90282054,1800.4,1800.1,0.05]
[1745655129014,5.55466743,1800.3,1800.1,0.05]
[1745655129233,0.85199464,1800.2,1800.1,0.05]
[1745655129443,15.37573298,1800.2,1800.1,0.05]
[1745655129791,15.8733135,1800.2,1800.1,0.05]
[1745655130115,15.37573298,1800.2,1800.1,0.05]
[1745655133553,9.82079464,1800.2,1800.1,0.05]
[1745655133748,5.16579464,1800.2,1800.1,0.05]
[1745655133974,9.82079464,1800.2,1800.1,0.05]
[1745655134103,15.37573298,1800.2,1800.1,0.05]
[1745655135205,9.82079464,1800.2,1800.1,0.05]
[1745655135405,9.05699464,1800.2,1800.1,0.05]
[1745655135736,14.61193298,1800.2,1800.1,0.05]
[1745655139453,15.43103298,1800.2,1800.1,0.05]
[1745655140456,15.9424746,1800.2,1800.1,0.05]
[1745655142460,10.38753626,1800.2,1800.1,0.05]
[1745655142758,11.01790786,1800.2,1800.1,0.05]
[1745655142965,7.9515279,1800.2,1800.1,0.05]
[1745655143258,4.9515279,1800.2,1800.1,0.05]
[1745655143420,7.9515279,1800.2,1800.1,0.05]
[1745655143826,13.50646624,1800.2,1800.1,0.05]
[1745655144026,15.41259611,1800.2,1800.1,0.05]
[1745655145358,15.96259611,1800.2,1800.1,0.05]
[1745655145878,16.78299611,1800.2,1800.1,0.05]
[1745655146247,17.29531073,1800.2,1800.1,0.05]
[1745655147051,6.9265729,1799.8,1799.7,0.4131141]
[1745655147269,15.87830955,1799.8,1799.7,0.4131141]
[1745655148643,16.28596942,1799.8,1799.7,0.4131141]
[1745655150153,15.7883889,1799.8,1799.7,0.4131141]
[1745655155105,6.10802578,1799.2,1799.1,0.8101]
[1745655155400,10.21502578,1799.2,1799.1,0.05]
[1745655155602,4.94177,1799.2,1799.1,0.05]
[1745655155905,4.94177,1799.2,1799.1,6.36843472]
[1745655156406,0.28477,1799.2,1799.1,7.56112431]
[1745655156762,4.684,1799.5,1799.3,5.5575265]
[1745655157105,4.684,1799.5,1799.4,0.7948]
[1745655157308,4.684,1799.5,1799.4,6.35220802]
[1745655157591,4.685,1799.7,1799.5,0.832]
[1745655160510,5.96383996,1799.8,1799.5,0.832]
[1745655160807,4.685,1799.7,1799.5,0.832]
[1745655161606,0.55,1799.6,1799.3,0.832]
[1745655162112,6.10681229,1799.6,1799.3,0.832]
[1745655162911,10.75094893,1799.7,1799.3,6.3897153]
[1745655163091,10.24168294,1799.7,1799.3,6.3897153]
[1745655165083,4.685,1799.7,1799.4,6.34849671]
[1745655166316,4.685,1799.7,1799.4,0.7913]
[1745655166520,10.24148977,1799.7,1799.4,0.7913]
[1745655168403,4.685,1799.7,1799.4,6.34866622]
[1745655168628,10.24170225,1799.7,1799.4,0.7913]
[1745655170001,5.55742754,1799.4,1799.2,0.7913]
[1745655170525,0.27819558,1799.3,1799.2,0.7913]
[1745655171034,0.27991133,1799.3,1799.2,0.7913]
[1745655171405,6.10729182,1799.5,1799.2,0.7913]
[1745655171611,0.27991133,1799.3,1799.2,0.7913]
[1745655172232,7.64968484,1799.5,1799.2,0.7913]
[1745655172392,0.27991133,1799.4,1799.2,0.7913]
[1745655173025,5.83736226,1799.4,1799.2,0.7913]
[1745655173227,0.27991133,1799.4,1799.2,0.7913]
[1745655173426,5.83732465,1799.4,1799.2,0.7913]
[1745655173633,5.83732465,1799.4,1799.1,0.05]
[1745655173634,5.55778278,1799.3,1799.1,0.05]
[1745655173820,0.55,1799.2,1799.1,0.05]
[1745655174133,0.27883909,1799.2,1799.1,0.05]
[1745655174337,0.82883909,1799.2,1799.1,0.05]
[1745655174636,0.82883909,1799.2,1799.1,6.88141524]
[1745655174637,0.27883909,1799.2,1799.1,6.88141524]
[1745655174846,4.685,1799.6,1799.3,5.55756447]
[1745655175026,4.685,1799.6,1799.3,11.11516578]
[1745655175210,0.27862461,1799.5,1799.3,11.11516578]
[1745655175538,0.27862461,1799.5,1799.4,5.55740802]
[1745655175739,0.27862461,1799.5,1799.3,5.55760237]
[1745655175905,0.27862461,1799.5,1799.3,11.1150795]
[1745655176506,0.27862461,1799.5,1799.4,5.55740802]
[1745655177841,0.27862461,1799.5,1799.2,0.7755]
[1745655178236,6.88797386,1799.5,1799.1,6.38364696]
[1745655180131,5.55783238,1799.3,1799.1,0.05]
[1745655180405,0.28001854,1799.2,1799.1,0.05]
[1745655182201,6.10744626,1799.4,1799.1,0.05]
[1745655182404,0.61074463,1799.3,1799.1,0.05]
[1745655182640,0.27851729,1799.3,1799.1,0.05]
[1745655182841,0.55,1799.4,1799.1,5.60830857]
[1745655182842,0.51414533,1799.4,1799.1,5.60830857]
[1745655183046,0.27851729,1799.3,1799.1,5.60830857]
[1745655183245,0.51414533,1799.4,1799.1,6.38380857]
[1745655183449,5.55742019,1799.4,1799.1,0.8255]
[1745655183662,0.25423657,1799.3,1799.1,0.8255]
[1745655183951,6.56976832,1799.4,1799.1,0.8255]
[1745655184116,0.25423657,1799.2,1799.1,0.8255]
[1745655184315,6.56976832,1799.4,1799.1,0.8255]
[1745655184527,0.25423657,1799.3,1799.1,0.8255]
[1745655184710,1.01234813,1799.4,1799.1,0.8255]
[1745655184942,0.25423657,1799.3,1799.1,0.8255]
[1745655185447,1.01234813,1799.4,1799.1,0.8255]
[1745655185617,0.25423657,1799.2,1799.1,0.8255]
[1745655185812,1.01234813,1799.4,1799.1,0.8255]
[1745655186013,0.25423657,1799.2,1799.1,0.8255]
[1745655186246,6.10788404,1799.3,1799.1,0.05]
[1745655186589,5.56102497,1799.2,1799.1,0.05]
[1745655186720,4.95023657,1799.2,1799.1,0.05]
[1745655187048,4.95023657,1799.2,1799.1,5.60833472]
[1745655188455,4.95023657,1799.2,1799.1,6.37393472]
[1745655189137,0.25423657,1799.2,1799.1,6.37393472]
[1745655189336,4.696,1799.5,1799.2,5.55775142]
[1745655189542,0.25423657,1799.4,1799.1,6.37377654]
[1745655190659,0.25423657,1799.4,1799.2,5.55801966]
[1745655192460,0.25423657,1799.4,1799.1,6.37369882]
[1745655192959,0.25423657,1799.4,1799.1,6.37369773]
[1745655193162,0.25423657,1799.4,1799.1,11.93179512]
[1745655193460,0.25423657,1799.4,1799.3,5.55771688]
[1745655194431,0.25423657,1799.4,1799.3,6.37041688]
[1745655195162,5.21037482,1799.7,1799.6,0.8127]
[1745655195369,4.696,1799.7,1799.6,0.8127]
[1745655195871,0.51437482,1799.8,1799.6,6.36949039]
[1745655196075,4.696,1800.0,1799.8,5.5561043]
[1745655197067,4.696,1800.1,1799.9,6.36853347]
[1745655197272,4.696,1800.1,1800.0,5.55555555]
[1745655197639,16.672,1800.3,1800.0,5.55555555]
[1745655197855,23.11365,1800.3,1800.0,5.55555555]
[1745655198733,23.11365,1800.3,1800.1,5.55521143]
[1745655198932,21.368,1800.3,1800.0,5.55540292]
[1745655199181,21.368,1800.3,1800.0,5.5553271]
[1745655199364,21.368,1800.3,1800.1,5.55505943]
[1745655199678,4.696,1800.3,1800.1,11.1100714]
[1745655199881,0.21482237,1800.2,1800.1,5.55501197]
[1745655200239,4.696,1800.4,1800.1,5.55501197]
[1745655200435,0.21482237,1800.3,1800.1,5.55501197]
[1745655201893,0.21482237,1800.3,1799.9,6.3684147]
[1745655202194,5.76964295,1800.3,1799.9,6.3684147]